[Event "*** SCC Grand Prix: Titled Tuesday Blitz"]
[Site "Chess.com"]
[Date "2020.08.04"]
[Round "5"]
[White "Bigfish1995"]
[Black "German_Bazeev"]
[Result "1/2-1/2"]
[WhiteElo "2977"]
[BlackElo "2741"]
[TimeControl "180+1"]
[EndTime "14:43:08 PDT"]
[Termination "Game drawn by repetition"]

1. d4 {[%clk 0:02:59.7]} 1... Nf6 {[%clk 0:03:00.2]} 2. Bf4 {[%clk 0:02:59.4]}
2... g6 {[%clk 0:03:00]} 3. Nf3 {[%clk 0:02:59.6]} 3... Bg7 {[%clk 0:02:59.8]}
4. e3 {[%clk 0:03:00.3]} 4... O-O {[%clk 0:02:59.9]} 5. Be2 {[%clk 0:03:00.9]}
5... d6 {[%clk 0:03:00.4]} 6. O-O {[%clk 0:03:01.4]} 6... Nc6 {[%clk 0:03:01]}
7. Nc3 {[%clk 0:03:00.7]} 7... Nd7 {[%clk 0:03:00.4]} 8. d5 {[%clk 0:02:54.8]}
8... Nce5 {[%clk 0:02:56.4]} 9. Nd4 {[%clk 0:02:54.5]} 9... c5 {[%clk
0:02:55.4]} 10. dxc6 {[%clk 0:02:50.5]} 10... bxc6 {[%clk 0:02:45.6]} 11. Bg3
{[%clk 0:02:20.8]} 11... c5 {[%clk 0:02:42.2]} 12. Nb3 {[%clk 0:02:09.2]} 12...
Nb6 {[%clk 0:02:31]} 13. Na5 {[%clk 0:01:59.9]} 13... Be6 {[%clk 0:02:17.4]} 14.
f4 {[%clk 0:01:53.3]} 14... Nec4 {[%clk 0:02:13.3]} 15. Nxc4 {[%clk 0:01:49.2]}
15... Nxc4 {[%clk 0:02:09.7]} 16. Qc1 {[%clk 0:01:40.2]} 16... Rb8 {[%clk
0:01:58.2]} 17. f5 {[%clk 0:01:24.6]} 17... gxf5 {[%clk 0:01:54.9]} 18. Bxc4
{[%clk 0:01:24.6]} 18... Bxc4 {[%clk 0:01:54.8]} 19. Rxf5 {[%clk 0:01:25.2]}
19... Be6 {[%clk 0:01:41.6]} 20. Rg5 {[%clk 0:01:24]} 20... h6 {[%clk 0:01:38]}
21. Rxg7+ {[%clk 0:01:23.3]} 21... Kxg7 {[%clk 0:01:38.5]} 22. b3 {[%clk
0:01:20.8]} 22... f6 {[%clk 0:01:37.5]} 23. e4 {[%clk 0:01:19.2]} 23... Qe8
{[%clk 0:01:37.2]} 24. Ne2 {[%clk 0:01:15.9]} 24... Bf7 {[%clk 0:01:13]} 25. Qe3
{[%clk 0:01:11.8]} 25... Qd7 {[%clk 0:01:00.3]} 26. Rf1 {[%clk 0:01:05.1]} 26...
Rg8 {[%clk 0:00:46.7]} 27. e5 {[%clk 0:00:31.6]} 27... dxe5 {[%clk 0:00:41.4]}
28. Bxe5 {[%clk 0:00:31.6]} 28... Rb6 {[%clk 0:00:38.8]} 29. Bf4 {[%clk
0:00:23.7]} 29... h5 {[%clk 0:00:27.2]} 30. c4 {[%clk 0:00:23.7]} 30... Kh7
{[%clk 0:00:24.4]} 31. Ng3 {[%clk 0:00:23.5]} 31... Qd4 {[%clk 0:00:22.6]} 32.
Nf5 {[%clk 0:00:22.1]} 32... Qxe3+ {[%clk 0:00:22.2]} 33. Bxe3 {[%clk 0:00:23]}
33... Re6 {[%clk 0:00:20.5]} 34. Bxc5 {[%clk 0:00:21.6]} 34... Re2 {[%clk
0:00:20.2]} 35. Rf2 {[%clk 0:00:21.1]} 35... Re1+ {[%clk 0:00:20.4]} 36. Rf1
{[%clk 0:00:21.5]} 36... Re2 {[%clk 0:00:20.8]} 37. g3 {[%clk 0:00:20.5]} 37...
Rd8 {[%clk 0:00:15]} 38. Rf2 {[%clk 0:00:14]} 38... Rd1+ {[%clk 0:00:14.7]} 39.
Kg2 {[%clk 0:00:14.3]} 39... Rxf2+ {[%clk 0:00:12.9]} 40. Bxf2 {[%clk
0:00:14.2]} 40... Rd2 {[%clk 0:00:11.9]} 41. a4 {[%clk 0:00:10.6]} 41... Bg6
{[%clk 0:00:12.4]} 42. Nxe7 {[%clk 0:00:09.2]} 42... Be4+ {[%clk 0:00:12.6]} 43.
Kf1 {[%clk 0:00:09.6]} 43... Bf3 {[%clk 0:00:11.5]} 44. Bxa7 {[%clk 0:00:09.6]}
44... Rb2 {[%clk 0:00:07.5]} 45. Bd4 {[%clk 0:00:08.5]} 45... Rxb3 {[%clk
0:00:06.8]} 46. Bxf6 {[%clk 0:00:09.1]} 46... Ra3 {[%clk 0:00:06.3]} 47. Kf2
{[%clk 0:00:08.3]} 47... Bb7 {[%clk 0:00:05.5]} 48. Bh4 {[%clk 0:00:06.5]} 48...
Ra2+ {[%clk 0:00:06.4]} 49. Ke3 {[%clk 0:00:06.5]} 49... Rxa4 {[%clk 0:00:07.3]}
50. Kd3 {[%clk 0:00:04.7]} 50... Ba6 {[%clk 0:00:07.1]} 51. Nf5 {[%clk 0:00:04]}
51... Bxc4+ {[%clk 0:00:06.8]} 52. Ke3 {[%clk 0:00:04.7]} 52... Bf7 {[%clk
0:00:07.3]} 53. Nd6 {[%clk 0:00:04.6]} 53... Ra3+ {[%clk 0:00:07.2]} 54. Kd4
{[%clk 0:00:04.6]} 54... Bg6 {[%clk 0:00:08.1]} 55. Ke5 {[%clk 0:00:03.9]} 55...
Re3+ {[%clk 0:00:08]} 56. Kf6 {[%clk 0:00:03.4]} 56... Rf3+ {[%clk 0:00:08.5]}
57. Ke5 {[%clk 0:00:03.7]} 57... Rf2 {[%clk 0:00:08.6]} 58. h3 {[%clk
0:00:03.2]} 58... Re2+ {[%clk 0:00:08.6]} 59. Kf6 {[%clk 0:00:03.1]} 59... Rf2+
{[%clk 0:00:09.1]} 60. Ke5 {[%clk 0:00:03.4]} 60... Ra2 {[%clk 0:00:09.4]} 61.
Nc4 {[%clk 0:00:03]} 61... Ra4 {[%clk 0:00:08.7]} 62. Nb6 {[%clk 0:00:03.3]}
62... Ra6 {[%clk 0:00:07.9]} 63. Nd5 {[%clk 0:00:03]} 63... Kg7 {[%clk
0:00:07.1]} 64. Nf4 {[%clk 0:00:02.8]} 64... Ra5+ {[%clk 0:00:06.6]} 65. Kd6
{[%clk 0:00:03.1]} 65... Ra6+ {[%clk 0:00:05.7]} 66. Ke7 {[%clk 0:00:03.3]}
66... Bf7 {[%clk 0:00:06.1]} 67. Bg5 {[%clk 0:00:02.9]} 67... Ra7+ {[%clk
0:00:05.8]} 68. Kd6 {[%clk 0:00:03.1]} 68... Ra6+ {[%clk 0:00:06.7]} 69. Ke7
{[%clk 0:00:02.6]} 69... Ra3 {[%clk 0:00:07.3]} 70. Bf6+ {[%clk 0:00:02.6]}
70... Kg8 {[%clk 0:00:07.1]} 71. Bh4 {[%clk 0:00:03.4]} 71... Ra7+ {[%clk
0:00:06.8]} 72. Kf6 {[%clk 0:00:04.3]} 72... Ra6+ {[%clk 0:00:07.6]} 73. Kg5
{[%clk 0:00:04.5]} 73... Kg7 {[%clk 0:00:08.1]} 74. Nxh5+ {[%clk 0:00:04.8]}
74... Bxh5 {[%clk 0:00:07.6]} 75. Kxh5 {[%clk 0:00:05.1]} 75... Ra5+ {[%clk
0:00:07]} 76. Bg5 {[%clk 0:00:05.1]} 76... Kf7 {[%clk 0:00:07.3]} 77. Kh6 {[%clk
0:00:04.6]} 77... Ra6+ {[%clk 0:00:06.7]} 78. Kh7 {[%clk 0:00:04.9]} 78... Ra3
{[%clk 0:00:05.4]} 79. Bf4 {[%clk 0:00:04.6]} 79... Kf6 {[%clk 0:00:05.8]} 80.
h4 {[%clk 0:00:04.9]} 80... Kf5 {[%clk 0:00:06.1]} 81. h5 {[%clk 0:00:04.8]}
81... Ra7+ {[%clk 0:00:05.6]} 82. Kg8 {[%clk 0:00:05.2]} 82... Ra8+ {[%clk
0:00:05.7]} 83. Kg7 {[%clk 0:00:04.8]} 83... Ra7+ {[%clk 0:00:06.2]} 84. Kf8
{[%clk 0:00:05.2]} 84... Ra8+ {[%clk 0:00:06.6]} 85. Ke7 {[%clk 0:00:05.2]}
85... Ra7+ {[%clk 0:00:06.5]} 86. Kd8 {[%clk 0:00:05.5]} 86... Ra8+ {[%clk
0:00:07]} 87. Kc7 {[%clk 0:00:05.8]} 87... Ra7+ {[%clk 0:00:06]} 88. Kb6 {[%clk
0:00:05.8]} 88... Rh7 {[%clk 0:00:06]} 89. h6 {[%clk 0:00:06.4]} 89... Kg6
{[%clk 0:00:06.6]} 90. Kc5 {[%clk 0:00:06.8]} 90... Ra7 {[%clk 0:00:04.5]} 91.
Kd6 {[%clk 0:00:06.9]} 91... Ra6+ {[%clk 0:00:04.6]} 92. Kd5 {[%clk 0:00:07]}
92... Ra5+ {[%clk 0:00:03.6]} 93. Kc4 {[%clk 0:00:07.5]} 93... Ra6 {[%clk
0:00:04.5]} 94. Kb5 {[%clk 0:00:07.8]} 94... Re6 {[%clk 0:00:04.4]} 95. Kc5
{[%clk 0:00:08.3]} 95... Re1 {[%clk 0:00:04.9]} 96. Kd4 {[%clk 0:00:08.5]} 96...
Re8 {[%clk 0:00:04.7]} 97. Kd3 {[%clk 0:00:08.5]} 97... Rd8+ {[%clk 0:00:04.7]}
98. Ke4 {[%clk 0:00:08.6]} 98... Re8+ {[%clk 0:00:05.6]} 99. Kf3 {[%clk
0:00:08.9]} 99... Re7 {[%clk 0:00:06]} 100. Kg4 {[%clk 0:00:09.3]} 100... Re8
{[%clk 0:00:06.5]} 101. Kf3 {[%clk 0:00:09.9]} 101... Re7 {[%clk 0:00:06.9]}
102. Kg4 {[%clk 0:00:10.8]} 102... Re8 {[%clk 0:00:07.1]} 103. Bg5 {[%clk
0:00:11.3]} 103... Re4+ {[%clk 0:00:07.1]} 104. Bf4 {[%clk 0:00:11.6]} 104...
Re8 {[%clk 0:00:08]} 1/2-1/2

[Event "*** SCC Grand Prix: Titled Tuesday Blitz"]
[Site "Chess.com"]
[Date "2020.08.04"]
[Round "5"]
[White "tan275"]
[Black "JMatias"]
[Result "1-0"]
[WhiteElo "2244"]
[BlackElo "2396"]
[TimeControl "180+1"]
[EndTime "14:43:10 PDT"]
[Termination "tan275 won by resignation"]

1. d4 {[%clk 0:03:00.9]} 1... Nf6 {[%clk 0:02:59.2]} 2. c4 {[%clk 0:03:00.3]}
2... e6 {[%clk 0:02:59.6]} 3. g3 {[%clk 0:03:00.5]} 3... d5 {[%clk 0:02:58.3]}
4. Nf3 {[%clk 0:03:00]} 4... Bb4+ {[%clk 0:02:56.5]} 5. Bd2 {[%clk 0:02:59.7]}
5... a5 {[%clk 0:02:55.8]} 6. Bg2 {[%clk 0:02:58.6]} 6... O-O {[%clk 0:02:54]}
7. O-O {[%clk 0:02:58]} 7... dxc4 {[%clk 0:02:53.3]} 8. Qc2 {[%clk 0:02:42.5]}
8... Bxd2 {[%clk 0:02:50.2]} 9. Nbxd2 {[%clk 0:02:40.2]} 9... b5 {[%clk
0:02:49.3]} 10. a4 {[%clk 0:02:37.9]} 10... c6 {[%clk 0:02:49.4]} 11. Rfd1
{[%clk 0:02:28.9]} 11... Na6 {[%clk 0:02:40.9]} 12. Ne5 {[%clk 0:02:16.1]} 12...
Nb4 {[%clk 0:02:31.9]} 13. Nxc6 {[%clk 0:01:33]} 13... Nxc2 {[%clk 0:02:29.2]}
14. Nxd8 {[%clk 0:01:32.7]} 14... Nxa1 {[%clk 0:02:21.9]} 15. Bxa8 {[%clk
0:01:31.7]} 15... Rxd8 {[%clk 0:02:08.4]} 16. Rxa1 {[%clk 0:01:30.6]} 16... b4
{[%clk 0:02:01.7]} 17. e3 {[%clk 0:01:13.8]} 17... Ba6 {[%clk 0:01:59.2]} 18.
Bc6 {[%clk 0:01:10.5]} 18... Rc8 {[%clk 0:01:51.5]} 19. Bb5 {[%clk 0:01:09.3]}
19... Bxb5 {[%clk 0:01:42.2]} 20. axb5 {[%clk 0:01:10.2]} 20... Nd5 {[%clk
0:01:41.8]} 21. Rxa5 {[%clk 0:01:05.4]} 21... c3 {[%clk 0:01:40]} 22. bxc3
{[%clk 0:01:04.6]} 22... bxc3 {[%clk 0:01:39.8]} 23. Nb3 {[%clk 0:01:04.4]}
23... c2 {[%clk 0:01:37.1]} 24. Nc1 {[%clk 0:01:03.1]} 24... h5 {[%clk
0:01:36.6]} 25. Kf1 {[%clk 0:01:00.1]} 25... Rb8 {[%clk 0:01:13.6]} 26. Ke1
{[%clk 0:00:58.1]} 26... Nc3 {[%clk 0:01:09.2]} 27. Kd2 {[%clk 0:00:58]} 27...
Nxb5 {[%clk 0:01:06.5]} 28. Kxc2 {[%clk 0:00:55.5]} 28... Nd6 {[%clk 0:01:03.1]}
29. Nd3 {[%clk 0:00:50.3]} 29... g6 {[%clk 0:01:00]} 30. Ra7 {[%clk 0:00:43.6]}
30... Ne4 {[%clk 0:00:49.6]} 31. f3 {[%clk 0:00:38.7]} 31... Rc8+ {[%clk
0:00:48.7]} 32. Kd1 {[%clk 0:00:27]} 32... Nc3+ {[%clk 0:00:21.4]} 33. Ke1
{[%clk 0:00:26.4]} 33... Nd5 {[%clk 0:00:20.1]} 34. Kd2 {[%clk 0:00:24.9]} 34...
Rb8 {[%clk 0:00:19.8]} 35. e4 {[%clk 0:00:20.5]} 35... Nb6 {[%clk 0:00:17]} 36.
Ne5 {[%clk 0:00:19]} 36... f6 {[%clk 0:00:16.1]} 37. Nxg6 {[%clk 0:00:18.2]}
37... Rd8 {[%clk 0:00:14.9]} 38. Ke3 {[%clk 0:00:16.3]} 38... Nc4+ {[%clk
0:00:14.9]} 39. Kd3 {[%clk 0:00:16.1]} 39... Nd6 {[%clk 0:00:14.3]} 40. Ne7+
{[%clk 0:00:10.7]} 40... Kf8 {[%clk 0:00:11.9]} 41. Ng6+ {[%clk 0:00:10]} 41...
Kg8 {[%clk 0:00:11.4]} 42. Ne7+ {[%clk 0:00:09.8]} 42... Kf8 {[%clk 0:00:11.3]}
43. Nc6 {[%clk 0:00:10.1]} 43... Rc8 {[%clk 0:00:09.7]} 44. d5 {[%clk
0:00:10.2]} 44... exd5 {[%clk 0:00:09.4]} 45. exd5 {[%clk 0:00:11.1]} 45... Re8
{[%clk 0:00:07.3]} 46. Rd7 {[%clk 0:00:09.1]} 46... Nf5 {[%clk 0:00:07.3]} 47.
Rd8 {[%clk 0:00:08.1]} 47... Rxd8 {[%clk 0:00:06.5]} 48. Nxd8 {[%clk 0:00:08.3]}
48... Ke7 {[%clk 0:00:07.4]} 49. Ne6 {[%clk 0:00:07.1]} 49... Kd6 {[%clk
0:00:08.3]} 50. Ke4 {[%clk 0:00:06.8]} 50... Ne7 {[%clk 0:00:07.7]} 51. Nf4
{[%clk 0:00:07.4]} 51... f5+ {[%clk 0:00:07]} 52. Kd4 {[%clk 0:00:07.2]} 52...
h4 {[%clk 0:00:07.3]} 53. gxh4 {[%clk 0:00:06.6]} 53... Ng8 {[%clk 0:00:07.3]}
54. h5 {[%clk 0:00:06.5]} 54... Nh6 {[%clk 0:00:07.7]} 55. h3 {[%clk 0:00:05.6]}
55... Nf7 {[%clk 0:00:08.5]} 56. h4 {[%clk 0:00:03.2]} 56... Nh6 {[%clk
0:00:07.6]} 57. Ne2 {[%clk 0:00:04.1]} 57... Nf7 {[%clk 0:00:06.6]} 58. Ng3
{[%clk 0:00:04.6]} 58... f4 {[%clk 0:00:05.8]} 59. Ne2 {[%clk 0:00:04]} 59...
Kd7 {[%clk 0:00:06.7]} 60. Nxf4 {[%clk 0:00:04.6]} 60... Nh6 {[%clk 0:00:06.5]}
61. Ke4 {[%clk 0:00:05.5]} 61... Kd6 {[%clk 0:00:06.4]} 62. Ng6 {[%clk
0:00:06.4]} 62... Nf7 {[%clk 0:00:05.8]} 63. f4 {[%clk 0:00:06.5]} 63... Nh6
{[%clk 0:00:04.8]} 64. f5 {[%clk 0:00:07.1]} 64... Kd7 {[%clk 0:00:04.6]} 65.
Nf4 {[%clk 0:00:07.4]} 65... Ke7 {[%clk 0:00:04.8]} 66. Ke5 {[%clk 0:00:07.3]}
66... Ng4+ {[%clk 0:00:05.1]} 67. Ke4 {[%clk 0:00:07.5]} 67... Nf6+ {[%clk
0:00:06]} 68. Kd4 {[%clk 0:00:05.4]} 68... Kd6 {[%clk 0:00:06.9]} 69. h6 {[%clk
0:00:04.4]} 69... Nh7 {[%clk 0:00:07.2]} 70. Nh5 {[%clk 0:00:04.2]} 70... Ke7
{[%clk 0:00:07.3]} 71. f6+ {[%clk 0:00:04.1]} 71... Kf7 {[%clk 0:00:07.9]} 72.
Ke5 {[%clk 0:00:04.2]} 72... Kg6 {[%clk 0:00:07.8]} 73. Nf4+ {[%clk 0:00:04.8]}
73... Kf7 {[%clk 0:00:08.2]} 74. d6 {[%clk 0:00:05.7]} 74... Nxf6 {[%clk
0:00:08.5]} 75. h7 {[%clk 0:00:05.7]} 75... Nd7+ {[%clk 0:00:09.4]} 76. Kd5
{[%clk 0:00:03.6]} 76... Kg7 {[%clk 0:00:10.3]} 77. Kc6 {[%clk 0:00:04.2]} 77...
Ne5+ {[%clk 0:00:10.1]} 78. Kc7 {[%clk 0:00:03.9]} 78... Kxh7 {[%clk 0:00:09.9]}
79. d7 {[%clk 0:00:04.5]} 79... Nf7 {[%clk 0:00:09.7]} 80. d8=Q {[%clk
0:00:04.4]} 80... Nxd8 {[%clk 0:00:09.9]} 81. Kxd8 {[%clk 0:00:05.3]} 81... Kg7
{[%clk 0:00:10.7]} 82. h5 {[%clk 0:00:06.2]} 82... Kf6 {[%clk 0:00:11.6]} 83.
Kd7 {[%clk 0:00:06]} 83... Kg5 {[%clk 0:00:11.7]} 84. Kd6 {[%clk 0:00:06.6]}
84... Kf6 {[%clk 0:00:11.8]} 85. Kd5 {[%clk 0:00:06.6]} 85... Kf5 {[%clk
0:00:12]} 86. Kd6 {[%clk 0:00:05.4]} 86... Kf6 {[%clk 0:00:12.4]} 87. Kd7 {[%clk
0:00:05.7]} 87... Kf7 {[%clk 0:00:12.9]} 88. Nh3 {[%clk 0:00:04.7]} 88... Kf6
{[%clk 0:00:13.1]} 89. Ke8 {[%clk 0:00:04.6]} 89... Kg7 {[%clk 0:00:13.3]} 90.
Nf4 {[%clk 0:00:04.7]} 90... Kf6 {[%clk 0:00:13.6]} 91. Kf8 {[%clk 0:00:04.5]}
91... Kg5 {[%clk 0:00:14]} 92. Kg7 {[%clk 0:00:04.5]} 92... Kf5 {[%clk 0:00:14]}
93. h6 {[%clk 0:00:05.4]} 1-0

[Event "*** SCC Grand Prix: Titled Tuesday Blitz"]
[Site "Chess.com"]
[Date "2020.08.04"]
[Round "6"]
[White "louis198"]
[Black "ClydeHillKid"]
[Result "1-0"]
[WhiteElo "2508"]
[BlackElo "2308"]
[TimeControl "180+1"]
[EndTime "14:45:55 PDT"]
[Termination "louis198 won by resignation"]

1. d4 {[%clk 0:03:00.9]} 1... d5 {[%clk 0:02:57.4]} 2. c4 {[%clk 0:02:59.9]}
2... e6 {[%clk 0:02:57.2]} 3. Nc3 {[%clk 0:03:00.8]} 3... Nf6 {[%clk 0:02:57.2]}
4. Nf3 {[%clk 0:03:01.3]} 4... c6 {[%clk 0:02:57.3]} 5. Bg5 {[%clk 0:03:02.2]}
5... Nbd7 {[%clk 0:02:57.5]} 6. e3 {[%clk 0:03:02.5]} 6... Qa5 {[%clk
0:02:56.9]} 7. Bxf6 {[%clk 0:03:03.1]} 7... Nxf6 {[%clk 0:02:56.8]} 8. Nd2
{[%clk 0:03:03.9]} 8... Bd6 {[%clk 0:02:53.8]} 9. Bd3 {[%clk 0:03:03.4]} 9...
O-O {[%clk 0:02:53.6]} 10. O-O {[%clk 0:03:03.2]} 10... e5 {[%clk 0:02:49.2]}
11. cxd5 {[%clk 0:03:00.6]} 11... exd4 {[%clk 0:02:47.9]} 12. Nb3 {[%clk
0:02:58.5]} 12... Qc7 {[%clk 0:02:45.6]} 13. Nxd4 {[%clk 0:02:58.6]} 13... Bxh2+
{[%clk 0:02:45.4]} 14. Kh1 {[%clk 0:02:58.7]} 14... Nxd5 {[%clk 0:02:44.8]} 15.
Nxd5 {[%clk 0:02:58.6]} 15... cxd5 {[%clk 0:02:45.7]} 16. Qh5 {[%clk 0:02:58.1]}
16... h6 {[%clk 0:02:37.3]} 17. Qxh2 {[%clk 0:02:58.1]} 17... Qe7 {[%clk
0:02:36.8]} 18. Rac1 {[%clk 0:02:56.8]} 18... Be6 {[%clk 0:02:36.5]} 19. Rc7
{[%clk 0:02:56.3]} 19... Qf6 {[%clk 0:02:34.8]} 20. Rxb7 {[%clk 0:02:52.9]}
20... a5 {[%clk 0:02:32.3]} 21. Rc1 {[%clk 0:02:51.3]} 21... a4 {[%clk
0:02:30.8]} 22. Rcc7 {[%clk 0:02:51.2]} 22... Qxf2 {[%clk 0:02:30.1]} 23. Qf4
{[%clk 0:02:34.1]} 23... Qe1+ {[%clk 0:02:20.6]} 24. Kh2 {[%clk 0:02:33.6]}
24... Rae8 {[%clk 0:02:18.6]} 25. Nxe6 {[%clk 0:02:26.7]} 25... Rxe6 {[%clk
0:02:16.2]} 26. Rxf7 {[%clk 0:02:26.9]} 1-0

[Event "*** SCC Grand Prix: Titled Tuesday Blitz"]
[Site "Chess.com"]
[Date "2020.08.04"]
[Round "6"]
[White "aljado"]
[Black "Shushik"]
[Result "1-0"]
[WhiteElo "2133"]
[BlackElo "2273"]
[TimeControl "180+1"]
[EndTime "14:46:01 PDT"]
[Termination "aljado won by resignation"]

1. e4 {[%clk 0:03:00]} 1... e5 {[%clk 0:02:59.7]} 2. Nf3 {[%clk 0:02:59.4]} 2...
Nc6 {[%clk 0:02:59.7]} 3. Bb5 {[%clk 0:02:59.1]} 3... Nf6 {[%clk 0:02:59.4]} 4.
d3 {[%clk 0:02:57.3]} 4... d6 {[%clk 0:02:59.1]} 5. O-O {[%clk 0:02:56.9]} 5...
a6 {[%clk 0:02:59]} 6. Ba4 {[%clk 0:02:55.7]} 6... b5 {[%clk 0:02:58.5]} 7. Bb3
{[%clk 0:02:55.6]} 7... Na5 {[%clk 0:02:58.7]} 8. Nc3 {[%clk 0:02:49.4]} 8... c5
{[%clk 0:02:58.3]} 9. Nd5 {[%clk 0:02:42.5]} 9... Nxb3 {[%clk 0:02:56.3]} 10.
axb3 {[%clk 0:02:41.5]} 10... Nxd5 {[%clk 0:02:55]} 11. exd5 {[%clk 0:02:41.4]}
11... Be7 {[%clk 0:02:54.4]} 12. c4 {[%clk 0:02:40.8]} 12... b4 {[%clk
0:02:52.3]} 13. Be3 {[%clk 0:02:38.8]} 13... f5 {[%clk 0:02:51.2]} 14. Re1
{[%clk 0:02:32]} 14... g5 {[%clk 0:02:46.9]} 15. Nxg5 {[%clk 0:02:15.9]} 15...
Bxg5 {[%clk 0:02:44.9]} 16. Qh5+ {[%clk 0:02:15]} 16... Kd7 {[%clk 0:02:43.2]}
17. Bxg5 {[%clk 0:02:11.6]} 17... Qf8 {[%clk 0:02:39]} 18. Qh6 {[%clk
0:01:56.6]} 18... Qe8 {[%clk 0:02:31.8]} 19. Qg7+ {[%clk 0:01:50.7]} 1-0

[Event "*** SCC Grand Prix: Titled Tuesday Blitz"]
[Site "Chess.com"]
[Date "2020.08.04"]
[Round "6"]
[White "mapleaff"]
[Black "SamuelGhimpu2003"]
[Result "0-1"]
[WhiteElo "2384"]
[BlackElo "2563"]
[TimeControl "180+1"]
[EndTime "14:46:12 PDT"]
[Termination "SamuelGhimpu2003 won by resignation"]

1. d4 {[%clk 0:02:59]} 1... Nf6 {[%clk 0:02:59.7]} 2. c4 {[%clk 0:02:59.4]} 2...
g6 {[%clk 0:02:58.7]} 3. Nc3 {[%clk 0:02:59.7]} 3... d5 {[%clk 0:02:58.8]} 4.
Nf3 {[%clk 0:02:59.2]} 4... Bg7 {[%clk 0:02:58.7]} 5. h4 {[%clk 0:02:59.5]} 5...
dxc4 {[%clk 0:02:58]} 6. e4 {[%clk 0:02:58.8]} 6... c5 {[%clk 0:02:58.3]} 7. d5
{[%clk 0:02:58.2]} 7... b5 {[%clk 0:02:57.5]} 8. h5 {[%clk 0:02:58]} 8... Nxh5
{[%clk 0:02:51.7]} 9. Nxb5 {[%clk 0:02:46.4]} 9... Bg4 {[%clk 0:02:51.5]} 10.
Bxc4 {[%clk 0:02:37.1]} 10... Nd7 {[%clk 0:02:51.6]} 11. d6 {[%clk 0:02:28.3]}
11... O-O {[%clk 0:02:45.3]} 12. dxe7 {[%clk 0:02:05.5]} 12... Qxe7 {[%clk
0:02:46.2]} 13. O-O {[%clk 0:02:06.4]} 13... Rad8 {[%clk 0:02:34.9]} 14. Qe2
{[%clk 0:02:00.3]} 14... Ne5 {[%clk 0:02:31]} 15. Bd5 {[%clk 0:01:54]} 15...
Rxd5 {[%clk 0:02:24.6]} 16. exd5 {[%clk 0:01:44.9]} 16... Nxf3+ {[%clk
0:02:23.7]} 0-1

[Event "*** SCC Grand Prix: Titled Tuesday Blitz"]
[Site "Chess.com"]
[Date "2020.08.04"]
[Round "6"]
[White "kasparicy"]
[Black "RitvarsReimanis"]
[Result "0-1"]
[WhiteElo "2381"]
[BlackElo "2511"]
[TimeControl "180+1"]
[EndTime "14:47:37 PDT"]
[Termination "RitvarsReimanis won by resignation"]

1. e4 {[%clk 0:02:52.5]} 1... e5 {[%clk 0:02:59.5]} 2. Nf3 {[%clk 0:02:51.5]}
2... Nc6 {[%clk 0:02:59.1]} 3. Bc4 {[%clk 0:02:49]} 3... Nf6 {[%clk 0:02:57.2]}
4. d3 {[%clk 0:02:48.6]} 4... Bc5 {[%clk 0:02:49]} 5. c3 {[%clk 0:02:48.6]} 5...
O-O {[%clk 0:02:47]} 6. Bb3 {[%clk 0:02:44.9]} 6... h6 {[%clk 0:02:46.8]} 7.
Nbd2 {[%clk 0:02:43.3]} 7... d6 {[%clk 0:02:46.9]} 8. h3 {[%clk 0:02:43.7]} 8...
a6 {[%clk 0:02:45.4]} 9. Nf1 {[%clk 0:02:43.5]} 9... Be6 {[%clk 0:02:42.5]} 10.
Bc2 {[%clk 0:02:43.3]} 10... d5 {[%clk 0:02:39.7]} 11. Qe2 {[%clk 0:02:42.9]}
11... dxe4 {[%clk 0:02:37.1]} 12. dxe4 {[%clk 0:02:43.8]} 12... b5 {[%clk
0:02:36.3]} 13. b3 {[%clk 0:02:38]} 13... b4 {[%clk 0:02:34.6]} 14. Bb2 {[%clk
0:02:28.9]} 14... bxc3 {[%clk 0:02:34.3]} 15. Bxc3 {[%clk 0:02:29.8]} 15... Nd4
{[%clk 0:02:34.3]} 16. Nxd4 {[%clk 0:02:28]} 16... exd4 {[%clk 0:02:34.3]} 17.
Bb2 {[%clk 0:02:20.5]} 17... Re8 {[%clk 0:02:25.5]} 18. O-O-O {[%clk 0:02:19.7]}
18... a5 {[%clk 0:02:12.8]} 19. g4 {[%clk 0:02:16.8]} 19... a4 {[%clk 0:02:12]}
20. Ng3 {[%clk 0:02:01.2]} 20... axb3 {[%clk 0:02:11]} 21. axb3 {[%clk
0:02:02.1]} 21... Ba3 {[%clk 0:02:10.3]} 22. e5 {[%clk 0:01:51.7]} 22... Qe7
{[%clk 0:01:55.1]} 23. Bxa3 {[%clk 0:01:10.5]} 23... Qxa3+ {[%clk 0:01:53.7]}
24. Kd2 {[%clk 0:01:11.4]} 24... Qb4+ {[%clk 0:01:46.4]} 0-1

[Event "*** SCC Grand Prix: Titled Tuesday Blitz"]
[Site "Chess.com"]
[Date "2020.08.04"]
[Round "6"]
[White "Fighter008"]
[Black "allvim"]
[Result "1-0"]
[WhiteElo "2618"]
[BlackElo "2376"]
[TimeControl "180+1"]
[EndTime "14:47:42 PDT"]
[Termination "Fighter008 won by resignation"]

1. e4 {[%clk 0:03:00.9]} 1... c5 {[%clk 0:02:58.9]} 2. Nf3 {[%clk 0:03:00.9]}
2... d6 {[%clk 0:02:59.4]} 3. d4 {[%clk 0:03:00.9]} 3... cxd4 {[%clk 0:03:00.3]}
4. Nxd4 {[%clk 0:03:01.8]} 4... Nf6 {[%clk 0:03:00.8]} 5. Nc3 {[%clk 0:03:01.9]}
5... a6 {[%clk 0:03:01.3]} 6. Be3 {[%clk 0:03:01.6]} 6... e5 {[%clk 0:03:00.8]}
7. Nb3 {[%clk 0:03:01.6]} 7... Be6 {[%clk 0:03:01]} 8. Qd2 {[%clk 0:03:01.2]}
8... Nbd7 {[%clk 0:03:00.5]} 9. O-O-O {[%clk 0:03:00.6]} 9... Qc7 {[%clk
0:03:00.4]} 10. f4 {[%clk 0:03:00.8]} 10... exf4 {[%clk 0:03:00.1]} 11. Bxf4
{[%clk 0:03:00.9]} 11... Ne5 {[%clk 0:02:56.9]} 12. Nd4 {[%clk 0:02:57.8]} 12...
Be7 {[%clk 0:02:52.7]} 13. Kb1 {[%clk 0:02:53.4]} 13... O-O {[%clk 0:02:51.2]}
14. g4 {[%clk 0:02:53.4]} 14... Rac8 {[%clk 0:02:31.8]} 15. g5 {[%clk
0:02:52.6]} 15... Nfd7 {[%clk 0:02:26.8]} 16. Nf5 {[%clk 0:02:50.9]} 16... Bxf5
{[%clk 0:02:18.9]} 17. Nd5 {[%clk 0:02:49.4]} 17... Qxc2+ {[%clk 0:01:23.7]} 18.
Qxc2 {[%clk 0:02:48.6]} 18... Rxc2 {[%clk 0:01:24.6]} 19. Nxe7+ {[%clk
0:02:48.6]} 19... Kh8 {[%clk 0:01:24.8]} 20. Nxf5 {[%clk 0:02:45.5]} 20... Rf2
{[%clk 0:01:02.2]} 21. Bg3 {[%clk 0:02:42.7]} 21... Rf3 {[%clk 0:00:12.4]} 22.
Be2 {[%clk 0:02:41.1]} 1-0